bitfinex/quotes_ETHUSD_20260207
["timestamp","ask_amount","ask_price","bid_price","bid_amount"]
[1770484078081,0.002,2039.0,2037.8,0.02440453]
[1770484078292,0.91553966,2039.0,2037.7,0.66521524]
[1770484078793,0.002,2039.0,2038.2,0.98491376]
[1770484079101,0.002,2039.0,2038.4,0.98491376]
[1770484079405,0.002,2039.2,2038.7,0.98491376]
[1770484079604,0.002,2039.2,2038.6,5.64283411]
[1770484080518,0.002,2039.9,2038.6,5.64283411]
[1770484080713,0.002,2039.9,2039.2,0.98491376]
[1770484080714,0.004,2039.9,2039.2,0.98491376]
[1770484081006,0.91353966,2039.8,2038.3,11.21147916]
[1770484081223,0.004,2039.9,2038.7,1.456]
[1770484081427,0.004,2039.9,2038.7,6.65601607]
[1770484081728,0.004,2039.9,2039.3,0.98491376]
[1770484082029,0.91353966,2041.6,2039.8,0.98491376]
[1770484082177,0.91553966,2041.8,2040.0,0.98491376]
[1770484082984,0.93794419,2041.6,2039.9,2.07649298]
[1770484083295,0.93794419,2041.6,2039.9,1.458]
[1770484083296,0.91353966,2041.2,2039.9,1.458]
[1770484083481,0.2335703,2041.1,2039.9,1.458]
[1770484083679,0.93794419,2041.0,2039.9,1.458]
[1770484085212,1.01593966,2040.9,2039.9,1.458]
[1770484085714,0.02440453,2040.4,2038.8,0.66560161]
[1770484085906,0.91246266,2040.2,2038.6,5.20001607]
[1770484086298,0.93686719,2040.1,2038.6,5.20001607]
[1770484086816,0.91246266,2040.1,2038.6,5.20001607]
[1770484087323,0.1024,2040.3,2039.2,0.95955105]
[1770484087497,0.35280245,2040.9,2040.2,0.02440453]
[1770484087822,0.91246266,2041.7,2039.5,0.95955105]
[1770484088019,0.91246266,2041.4,2039.6,0.62512373]
[1770484088319,0.91246266,2041.4,2039.7,0.95955105]
[1770484088622,0.91246266,2041.4,2039.6,0.62512373]
[1770484088919,0.2335703,2041.2,2039.6,0.62512373]
[1770484089153,1.14603296,2041.2,2039.6,0.62512373]
[1770484089447,0.91246266,2040.9,2039.6,0.62512373]
[1770484089733,0.91246266,2040.6,2038.7,0.02440453]
[1770484089897,0.91246266,2040.6,2038.7,2.21019774]
[1770484090094,0.91246266,2040.6,2038.8,0.95955105]
[1770484090495,0.91246266,2040.6,2038.8,0.98395558]
[1770484090795,0.02440453,2040.7,2038.8,0.98395558]
[1770484091208,1.22641924,2041.8,2039.5,0.90851957]
[1770484091396,0.92633531,2040.8,2039.1,5.29168627]
[1770484091602,0.92633531,2040.8,2039.2,0.52916863]
[1770484093196,0.92633531,2041.2,2039.3,0.90851957]
[1770484093406,0.1024,2041.1,2039.3,0.90851957]
[1770484093722,0.92633531,2041.2,2039.3,0.90851957]
[1770484093917,0.92633531,2041.2,2039.4,0.26880238]
[1770484094432,0.92633531,2041.2,2039.4,1.17732195]
[1770484095332,0.1024,2041.3,2039.5,0.90851957]
[1770484095516,0.92633531,2041.3,2039.5,0.90851957]
[1770484095891,0.002,2041.0,2039.5,0.90851957]
[1770484096116,0.002,2041.0,2039.8,0.90851957]
[1770484096317,0.002,2041.0,2039.9,0.62002058]
[1770484096623,0.002,2041.0,2039.5,0.90851957]
[1770484097334,0.92633531,2040.9,2039.4,0.26880238]
[1770484097505,0.002,2041.0,2039.3,0.90851957]
[1770484098329,0.92633531,2040.9,2039.3,0.90851957]
[1770484098912,0.92633531,2040.9,2039.2,0.52916863]
[1770484099120,0.92633531,2040.7,2039.0,0.9329241]
[1770484099711,0.92633531,2040.7,2039.0,0.90851957]
[1770484100307,0.92633531,2040.7,2039.0,0.9329241]
[1770484100632,0.92633531,2040.7,2039.1,1.53098061]
[1770484101319,0.92633531,2040.7,2039.1,2.7570117]
[1770484101517,0.92633531,2040.7,2039.1,1.53098061]
[1770484101901,0.92633531,2040.7,2039.1,0.62246104]
[1770484102320,0.92633531,2040.7,2039.2,0.90851957]
[1770484102510,0.92633531,2040.7,2039.1,0.62246104]
[1770484103308,0.92633531,2040.5,2039.1,0.62246104]
[1770484103709,0.87633531,2040.5,2039.1,0.62246104]
[1770484105231,0.95273984,2041.0,2039.2,0.90851957]
[1770484105404,0.002,2041.0,2039.2,0.9329241]
[1770484105608,0.002,2041.0,2039.3,0.90851957]
[1770484105827,0.92833531,2041.0,2039.3,0.90851957]
[1770484106021,0.002,2041.0,2039.3,0.90851957]
[1770484106533,0.002,2041.0,2039.5,0.90851957]
[1770484106835,0.92833531,2041.0,2039.5,0.90851957]
[1770484107039,0.92833531,2041.0,2039.2,0.9329241]
[1770484107531,0.92833531,2041.0,2039.4,5.19670378]
[1770484107711,0.92833531,2041.0,2039.5,0.51967038]
[1770484108110,0.002,2041.0,2039.6,0.90851957]
[1770484108347,0.002,2041.0,2039.9,5.19670378]
[1770484108708,0.92833531,2041.0,2039.5,0.51967038]
[1770484109010,0.92833531,2041.0,2038.8,0.9339241]
[1770484109011,0.92633531,2039.1,2037.7,5.19670378]
[1770484109210,1.93249793,2039.5,2038.2,5.19670378]
[1770484109407,3.47372135,2039.5,2038.3,0.90851957]
[1770484109638,1.8943304,2039.4,2039.0,0.001]
[1770484109838,1.0360016,2039.4,2039.0,0.001]
[1770484110043,0.92633531,2039.9,2039.0,0.001]
[1770484110710,0.1024,2040.3,2038.5,0.001]
[1770484110711,0.92633531,2039.5,2038.5,0.001]
[1770484112050,0.92633531,2039.9,2038.7,0.02440453]
[1770484112229,0.4901,2040.4,2038.7,0.02440453]
[1770484112230,0.92633531,2040.3,2039.0,0.02440453]
[1770484112431,0.92633531,2040.3,2038.7,0.02440453]
[1770484112816,0.92633531,2040.1,2038.5,0.001]
[1770484113030,0.33292071,2040.4,2038.8,0.02440453]
[1770484113031,0.2335703,2040.3,2038.8,0.02440453]
[1770484113332,0.33292071,2040.4,2039.2,0.90851957]
[1770484113640,0.33292071,2040.4,2039.4,0.90851957]
[1770484113843,0.33292071,2040.4,2039.3,1.468]
[1770484114336,0.33292071,2040.4,2038.8,0.02440453]
[1770484114337,0.92633531,2040.3,2038.8,0.02440453]
[1770484114548,0.92633531,2040.3,2039.0,1.467]
[1770484117655,0.92633531,2040.3,2039.1,0.02440453]
[1770484117850,0.33292071,2040.4,2039.1,0.02440453]
[1770484118365,0.33292071,2040.4,2039.4,0.02440453]
[1770484118520,0.93836037,2040.3,2039.0,1.467]
[1770484118727,0.33292071,2040.4,2039.2,0.94129408]
[1770484119226,0.33292071,2040.4,2039.4,0.02440453]
[1770484119570,0.33292071,2040.4,2039.1,0.96569861]
[1770484120461,0.33292071,2040.4,2039.4,0.02440453]
[1770484120647,0.002,2040.7,2040.2,0.94129408]
[1770484121158,0.002,2040.7,2040.1,1.466]
[1770484122224,0.002,2040.7,2040.1,2.40729408]
[1770484122462,0.002,2040.7,2040.2,0.96569861]
[1770484122661,0.002,2040.2,2040.1,1.466]
[1770484122849,0.002,2040.7,2040.1,1.466]
[1770484123024,0.002,2040.7,2040.1,2.40729408]
[1770484123224,0.002,2040.4,2040.1,2.40729408]
[1770484123428,0.002,2041.0,2040.2,0.96569861]
[1770484124444,0.002,2041.3,2040.3,1.22531]
[1770484124629,0.002,2041.3,2040.3,0.89547049]
[1770484124825,0.002,2041.3,2040.1,1.466]
[1770484125631,0.002,2041.3,2040.2,0.02440453]
[1770484127234,0.002,2041.3,2040.3,0.94129408]
[1770484127933,0.002,2041.3,2040.1,1.466]
[1770484128336,0.93836037,2041.2,2039.7,0.02440453]
[1770484128557,0.93836037,2041.2,2039.5,7.46466626]
[1770484128762,0.93836037,2041.2,2039.7,0.02440453]
[1770484129262,0.002,2041.3,2039.8,0.94129408]
[1770484129473,0.94036037,2041.3,2039.7,0.02440453]
[1770484129679,0.94036037,2041.3,2039.6,0.74890708]
[1770484129978,0.94036037,2041.3,2039.7,0.02440453]
[1770484130176,0.94036037,2041.3,2039.7,0.60710079]
[1770484130384,0.94036037,2041.3,2039.7,0.63150532]
[1770484131336,0.002,2041.3,2039.8,0.94129408]
[1770484131542,0.002,2041.3,2040.0,6.15950924]
[1770484132581,0.002,2041.3,2040.3,0.02440453]
[1770484132756,0.33232862,2041.6,2040.6,0.02440453]
[1770484132951,0.33232862,2041.6,2040.6,0.52182152]
[1770484133992,0.93836037,2041.5,2040.0,5.21821516]
[1770484134171,0.33232862,2041.6,2040.3,0.02440453]
[1770484134341,0.33232862,2041.6,2040.3,0.96569861]
[1770484134547,0.33232862,2041.6,2040.6,0.02440453]
[1770484134853,0.33232862,2041.6,2040.6,0.54622605]
[1770484135450,0.33232862,2041.6,2040.6,0.52182152]
[1770484135767,0.002,2041.4,2040.6,0.54622605]
[1770484135966,0.002,2041.4,2040.6,0.52182152]
[1770484136374,0.94036037,2041.4,2040.0,5.21821516]
[1770484136673,0.94036037,2041.4,2040.1,0.94129408]
[1770484136874,0.94036037,2041.4,2040.6,0.94129408]
[1770484136875,0.002,2041.4,2040.6,0.94129408]
[1770484137048,0.002,2041.4,2040.7,0.61351047]
[1770484138876,0.002,2041.4,2040.8,0.94129408]
[1770484139270,0.002,2041.4,2040.7,0.61351047]
[1770484139591,0.33432862,2041.6,2040.7,0.61351047]
[1770484140080,0.33432862,2041.6,2040.7,1.55480455]
[1770484140280,0.33432862,2041.6,2040.7,0.61351047]
[1770484140651,0.33432862,2041.6,2040.8,1.478]
[1770484141358,0.002,2041.8,2040.9,0.94129408]
[1770484141561,0.002,2041.8,2040.8,1.478]
[1770484141762,0.94036037,2041.8,2040.9,0.77140785]
[1770484142462,0.94036037,2041.8,2040.3,0.96569861]
[1770484142663,0.94036037,2041.8,2040.4,1.481]
[1770484143581,0.93836037,2041.6,2040.4,1.481]
[1770484143789,0.93836037,2041.4,2040.4,1.481]
[1770484143961,0.93836037,2041.2,2039.7,6.25407339]
[1770484144293,1.17193067,2040.9,2039.8,0.62540734]
[1770484144661,1.17193067,2040.9,2039.3,0.94129408]
[1770484144855,1.17193067,2040.9,2039.2,5.6479726]
[1770484145077,0.93836037,2040.4,2039.2,0.001]
[1770484145487,0.97518384,2040.0,2039.2,0.001]
[1770484145793,0.97518384,2039.8,2038.5,0.001]
[1770484145962,0.97518384,2039.6,2038.5,0.001]
[1770484146592,0.97518384,2039.9,2038.5,0.001]
[1770484146761,0.2335703,2039.8,2038.5,0.001]
[1770484147292,0.97518384,2039.9,2038.5,0.001]
[1770484148192,0.97518384,2039.8,2038.7,0.001]
[1770484148399,1.20875414,2039.7,2038.7,0.001]
[1770484148886,0.97518384,2039.3,2038.7,0.001]
[1770484149288,0.97518384,2039.2,2038.1,0.001]
[1770484149651,0.002,2041.1,2038.9,0.96062483]
[1770484149765,0.38093134,2040.0,2038.8,5.62256807]
[1770484149968,0.97518384,2039.9,2038.3,5.62256807]
[1770484150296,0.97518384,2039.7,2038.3,5.62256807]
[1770484150884,4.90115481,2040.4,2038.3,5.62256807]
[1770484150885,0.90567266,2040.8,2038.9,0.97975737]
[1770484151200,0.90567266,2040.6,2038.8,5.62256807]
[1770484151395,0.90567266,2040.4,2038.8,5.62256807]
[1770484151580,0.90567266,2039.9,2038.4,0.56225681]
[1770484152468,1.286604,2039.9,2038.4,0.56225681]
[1770484152667,0.90567266,2040.9,2039.1,0.02440453]
[1770484152869,0.002,2041.1,2039.8,0.97975737]
[1770484153082,0.002,2041.1,2039.8,6.60232544]
[1770484153283,0.002,2041.1,2039.9,0.662673]
[1770484153581,0.002,2041.1,2040.0,0.97975737]
[1770484153770,0.002,2041.1,2039.9,0.68707753]
[1770484153771,0.002,2041.3,2040.3,5.62256807]
[1770484153976,0.002,2041.3,2040.3,6.60232544]
[1770484154178,0.002,2041.8,2040.3,6.60232544]
[1770484154179,0.002,2041.8,2040.5,0.02440453]
[1770484154881,0.002,2041.8,2040.8,0.02440453]
[1770484155081,0.002,2042.0,2041.1,0.02440453]
[1770484156101,0.002,2042.0,2041.4,0.02440453]
[1770484156803,0.002,2042.0,2041.5,1.49]
[1770484157198,0.90767266,2042.2,2041.2,0.02440453]
[1770484157395,0.002,2042.2,2041.5,0.02440453]
[1770484158175,0.33268782,2042.8,2041.8,1.0041619]
[1770484158377,0.002,2043.6,2042.1,1.0041619]
[1770484158577,0.002,2043.6,2042.4,1.0041619]
[1770484158798,0.002,2043.6,2042.5,1.491]
[1770484159002,0.002,2043.6,2042.6,0.24951619]
[1770484159803,0.002,2043.6,2042.7,0.97975737]
[1770484160008,0.002,2043.6,2042.6,0.24951619]
[1770484160303,0.90767266,2043.6,2042.6,0.24951619]
[1770484160880,0.90767266,2043.6,2042.5,1.491]
[1770484161288,0.002,2043.6,2042.5,1.491]
[1770484161817,0.90767266,2043.1,2042.5,1.491]
[1770484162017,0.002,2043.6,2042.7,0.97975737]
[1770484162178,0.33258851,2043.8,2042.9,1.0041619]
[1770484162379,0.33258851,2043.8,2042.9,0.97975737]
[1770484162916,0.33258851,2043.8,2042.6,5.28393918]
[1770484163116,0.33258851,2043.8,2042.7,0.52839392]
[1770484163786,0.33258851,2043.8,2042.7,1.50815129]
[1770484163987,0.33258851,2043.8,2042.7,2.75638897]
[1770484164180,0.33258851,2043.8,2042.8,0.97975737]
[1770484165206,0.90567266,2043.7,2042.7,0.52839392]
[1770484165524,0.33258851,2043.8,2042.8,0.58123331]
[1770484166894,0.33258851,2043.8,2042.9,0.97975737]
[1770484167304,0.33258851,2043.8,2042.9,1.0041619]
[1770484167508,0.33258851,2043.8,2042.9,0.97975737]
[1770484168713,0.002,2044.0,2043.0,1.0041619]
[1770484169303,0.002,2044.0,2043.0,0.02440453]
[1770484169508,0.90567266,2043.9,2042.8,0.58123331]
[1770484170109,0.90567266,2043.9,2042.0,5.28393918]
[1770484170317,0.002,2044.2,2043.3,5.28393918]
[1770484170537,0.2574847,2045.1,2043.7,0.97975737]
[1770484170832,0.002,2045.1,2043.9,0.02440453]
[1770484171038,0.37383325,2045.0,2043.7,1.0041619]
[1770484171203,0.002,2045.1,2043.8,1.60856748]
[1770484171796,0.002,2045.1,2044.0,1.0041619]
[1770484172836,0.002,2045.1,2044.0,0.97975737]
[1770484173138,0.002,2045.1,2044.0,1.0041619]
[1770484173931,0.002,2044.9,2044.0,1.0041619]
[1770484174113,0.002,2044.9,2044.1,1.22303214]
[1770484174309,0.002,2045.7,2044.7,0.97975737]
[1770484174549,0.002,2045.7,2044.3,0.97975737]
[1770484174747,0.002,2045.7,2044.4,0.97975737]
[1770484175512,0.002,2045.7,2044.5,0.90904424]
[1770484175954,0.002,2045.9,2044.9,5.60192894]
[1770484176140,0.002,2046.2,2045.0,0.93344877]
[1770484176349,0.9605977,2046.8,2045.4,5.60192894]
[1770484177237,0.02640453,2047.1,2045.0,0.65109732]
[1770484177238,0.9605977,2046.5,2045.0,0.65109732]
[1770484177447,0.1024,2046.2,2044.9,5.60192894]
[1770484177810,0.3359703,2046.2,2044.9,5.60192894]
[1770484178023,0.2335703,2046.1,2044.9,5.60192894]
[1770484178432,0.9605977,2046.1,2044.9,5.60192894]
[1770484178635,0.1024,2046.0,2044.4,5.60192894]
[1770484178823,1.0629977,2046.0,2044.5,0.62550665]
[1770484179233,0.9605977,2045.8,2044.4,5.60192894]
[1770484179815,0.9605977,2046.2,2044.4,6.51097318]
[1770484180018,0.1024,2046.6,2045.0,0.90904424]
[1770484180218,0.9605977,2047.0,2045.4,5.60192894]
[1770484180515,0.9605977,2046.0,2044.5,5.60192894]
[1770484180840,0.9605977,2046.0,2044.6,0.56019289]
[1770484181221,0.9605977,2045.9,2044.5,5.60192894]
[1770484181416,0.2335703,2045.8,2044.5,5.60192894]
[1770484181620,0.9605977,2045.9,2044.6,0.56019289]
[1770484182346,0.9605977,2046.0,2044.6,0.56019289]
[1770484182529,1.0629977,2046.1,2044.6,1.46923713]
[1770484182722,1.0629977,2046.1,2044.6,0.56019289]
[1770484182922,1.0629977,2046.1,2044.7,0.61621218]
[1770484183141,0.2335703,2046.0,2044.7,0.61621218]
[1770484183343,1.194168,2046.0,2044.5,5.60192894]
[1770484183657,1.194168,2045.8,2044.5,5.60192894]
[1770484185027,0.2335703,2045.6,2044.5,5.60192894]
[1770484185224,0.9605977,2045.7,2044.5,5.60192894]
[1770484185424,0.9605977,2045.7,2044.6,0.56019289]
[1770484185647,0.9605977,2046.9,2045.1,0.90904424]
[1770484185850,0.1024,2046.6,2045.1,0.90904424]
[1770484186152,0.1024,2046.4,2045.2,0.65109732]
[1770484186453,1.0629977,2046.4,2045.0,5.60192894]
[1770484186820,0.002,2046.0,2045.0,5.60192894]
[1770484187019,0.002,2046.0,2044.7,0.001]
[1770484188653,0.9605977,2045.8,2044.7,0.001]
[1770484189058,0.002,2046.0,2044.7,0.001]
[1770484190267,0.9625977,2046.0,2044.7,0.001]
[1770484191844,0.1024,2045.9,2044.7,0.001]
[1770484192031,0.9605977,2045.9,2044.7,0.001]
[1770484195352,0.002,2046.0,2044.7,0.001]
[1770484195551,0.98500223,2045.9,2044.7,0.001]
[1770484195781,0.98500223,2045.9,2044.5,0.001]
[1770484195782,0.9605977,2044.9,2044.5,0.001]
[1770484195973,0.9605977,2044.9,2043.8,6.23073905]
[1770484195974,0.9605977,2044.9,2043.8,0.62881011]
[1770484196158,0.2335703,2045.2,2043.6,0.001]
[1770484196364,1.0629977,2045.3,2043.8,5.60192894]
[1770484196661,0.2335703,2045.5,2043.9,0.90904424]
[1770484196864,0.1024,2045.4,2044.0,0.65109732]
[1770484197064,1.0629977,2045.4,2044.0,0.65109732]
[1770484197453,0.9605977,2045.2,2044.0,0.65109732]
[1770484197660,1.194168,2045.1,2044.0,0.65109732]
[1770484198066,0.9605977,2044.9,2043.6,0.001]
[1770484199880,0.9605977,2044.8,2043.8,0.001]
[1770484200058,0.9605977,2044.6,2043.8,0.001]
[1770484200983,0.9605977,2044.4,2043.8,0.001]
[1770484201171,0.1024,2044.7,2043.8,0.001]
[1770484201691,0.002,2046.2,2044.0,0.90904424]
[1770484201861,0.002,2046.2,2044.5,0.90904424]
[1770484202257,0.002,2046.2,2044.6,0.90904424]
[1770484202456,0.9625977,2046.2,2044.6,0.90904424]
[1770484202784,0.9625977,2046.0,2044.9,5.17642508]
[1770484203762,0.002,2046.0,2044.9,5.17642508]
[1770484205391,0.002,2046.0,2044.4,5.17642508]
[1770484205392,1.04743316,2045.9,2044.4,5.17642508]
[1770484205694,0.2335703,2045.8,2044.5,0.51764251]
[1770484206188,1.04743316,2045.9,2044.5,0.51764251]
[1770484206386,1.07183769,2045.7,2044.4,5.17642508]
[1770484206587,1.17860346,2045.6,2044.4,5.17642508]
[1770484207106,1.17860346,2045.6,2043.8,0.001]
[1770484207107,0.94503316,2044.8,2043.8,0.001]
[1770484207282,0.2335703,2045.1,2043.8,0.001]
[1770484207466,0.1024,2044.9,2043.8,0.001]
[1770484207665,1.17860346,2045.0,2043.8,0.001]
[1770484208893,0.2335703,2045.0,2043.8,0.001]
[1770484209076,0.94503316,2045.4,2043.9,5.17642508]
[1770484209275,0.2335703,2045.3,2044.0,0.51774251]
[1770484209806,1.17860346,2045.2,2044.0,0.51774251]
[1770484210015,1.17860346,2045.2,2043.8,0.001]
[1770484210016,0.2335703,2044.9,2043.8,0.001]
[1770484210183,1.17860346,2044.9,2043.8,0.001]
[1770484210697,0.96943769,2044.5,2043.8,0.001]
[1770484210888,0.25550238,2045.7,2043.8,0.96603333]
[1770484211208,1.19818322,2045.1,2043.8,0.001]
[1770484211512,0.1024,2045.0,2043.8,0.001]
[1770484211689,0.2335703,2044.9,2044.2,0.001]
[1770484211874,0.1024,2044.8,2044.2,0.001]
[1770484212079,0.96461292,2044.6,2044.2,0.001]
[1770484212308,0.96461292,2044.6,2044.0,0.001]
[1770484212495,0.2335703,2044.5,2043.8,0.001]
[1770484212696,0.2335703,2044.7,2043.8,0.001]
[1770484213209,1.19818322,2044.7,2043.8,0.001]
[1770484213703,0.96461292,2044.7,2043.8,0.001]
[1770484214316,0.1024,2044.8,2043.8,0.001]
[1770484215114,1.06701292,2044.8,2043.8,0.001]
[1770484216886,0.96461292,2044.8,2043.8,0.001]
[1770484218595,0.2335703,2045.1,2043.8,0.001]
[1770484218596,0.96461292,2044.5,2043.8,0.001]
[1770484220522,0.3359703,2044.6,2043.8,0.001]
[1770484220730,0.96461292,2044.5,2043.8,0.001]
[1770484221089,1.22258775,2044.4,2043.8,0.001]
[1770484221510,0.96461292,2044.3,2043.8,0.001]
[1770484221709,0.98901745,2044.1,2043.1,0.001]
[1770484222319,0.96461292,2044.0,2043.1,0.001]
[1770484222803,0.96461292,2043.4,2041.9,5.17642508]
[1770484223035,0.2335703,2043.3,2042.0,0.51764251]
[1770484223213,1.22258775,2043.3,2042.0,0.51764251]
[1770484223530,0.96461292,2043.0,2041.9,5.17642508]
[1770484223829,0.96461292,2042.8,2041.6,0.001]
[1770484224619,0.96461292,2042.6,2041.6,0.001]
[1770484224850,0.96461292,2042.3,2041.6,0.001]
[1770484225139,0.1024,2042.2,2041.0,5.17642508]
[1770484225314,0.1024,2042.3,2041.0,0.51764251]
[1770484225518,0.2335703,2042.2,2040.9,5.17642508]
[1770484225817,0.2335703,2042.2,2041.0,0.96503333]
[1770484226018,0.98901745,2043.5,2041.5,0.96503333]
[1770484226246,0.98901745,2043.5,2040.8,1.22497386]
[1770484226247,0.96461292,2042.4,2040.7,5.17642508]
[1770484226414,0.2335703,2042.1,2040.8,0.51764251]
[1770484226620,0.96461292,2041.9,2040.8,0.51764251]
[1770484226942,0.3359703,2042.0,2040.8,0.51764251]
[1770484227138,1.30058322,2042.0,2040.8,0.51764251]
[1770484227321,0.96461292,2041.7,2040.9,0.56940676]
[1770484227525,0.96461292,2041.7,2040.2,5.17642508]
[1770484227734,0.1024,2041.6,2040.2,5.17642508]
[1770484227934,0.76797702,2041.0,2040.2,6.14145841]
[1770484228243,0.31814778,2042.5,2040.0,5.88657606]
[1770484228244,0.96461292,2042.4,2040.8,0.96503333]
[1770484228559,0.1024,2042.2,2040.8,0.96503333]
[1770484229049,0.96461292,2042.1,2040.7,5.17642508]
[1770484229214,0.2335703,2042.0,2040.8,0.51764251]
[1770484229418,1.19818322,2042.0,2040.8,0.51764251]
[1770484229834,1.19818322,2041.8,2040.2,5.17642508]
[1770484230344,1.19818322,2041.8,2040.3,0.96503333]
[1770484231934,1.09141745,2041.7,2040.1,0.58865761]
[1770484232246,1.06701292,2042.7,2040.7,0.96503333]
[1770484232444,0.98901745,2042.6,2040.7,0.96503333]
[1770484232618,1.19818322,2042.3,2040.7,0.96503333]
[1770484233348,0.02440453,2042.9,2041.0,0.96503333]
[1770484233531,0.1024,2042.5,2041.0,0.96503333]
[1770484233920,0.2335703,2042.4,2041.0,0.96503333]
[1770484234130,1.06701292,2042.5,2041.0,0.96503333]
[1770484234342,0.1024,2042.5,2041.0,0.96503333]
[1770484234544,0.1024,2042.5,2041.1,1.57917917]
[1770484234737,0.96461292,2042.4,2041.1,0.61414584]
[1770484235231,0.1024,2042.6,2041.1,0.61414584]
[1770484235627,0.1024,2042.6,2041.2,0.98835261]
[1770484236518,0.2335703,2042.5,2041.2,0.98835261]
[1770484236721,0.2335703,2042.3,2041.1,0.61414584]
[1770484237247,0.1024,2042.4,2041.1,0.61414584]
[1770484239261,0.1024,2042.3,2041.1,0.61414584]
[1770484239558,0.04567544,2041.5,2041.1,0.61414584]
[1770484240174,1.06412681,2042.3,2041.1,0.61414584]
[1770484241081,1.06412681,2042.3,2040.9,0.001]
[1770484241275,0.1024,2043.1,2041.0,0.98835261]
[1770484241446,0.96172681,2042.9,2041.0,0.98835261]
[1770484241764,1.06412681,2042.7,2041.2,0.98835261]
[1770484242169,0.02440453,2042.9,2041.1,0.61657777]
[1770484242170,1.06412681,2042.5,2041.1,0.61657777]
[1770484243780,1.06412681,2042.5,2041.1,1.60493038]
[1770484244875,0.96172681,2042.5,2041.1,1.60493038]
[1770484245079,0.3359703,2042.7,2041.2,0.98835261]
[1770484245681,0.1024,2042.7,2041.2,0.98835261]
[1770484245983,1.06412681,2042.7,2041.2,0.98835261]
[1770484246354,0.96172681,2042.3,2041.1,0.61657777]
[1770484246691,0.98613134,2042.3,2040.9,0.001]
[1770484247187,0.96172681,2042.1,2040.9,0.001]
[1770484247354,0.96172681,2042.0,2040.9,0.001]
[1770484247554,0.96172681,2041.8,2040.9,0.001]
[1770484247985,0.1024,2041.7,2040.9,0.001]
[1770484248163,1.06412681,2041.7,2040.9,0.001]
[1770484248554,1.19529711,2041.6,2040.9,0.001]
[1770484249081,0.1024,2041.5,2040.9,0.001]
[1770484249277,1.19529711,2041.2,2040.7,0.001]
[1770484249481,1.19529711,2041.2,2039.6,0.98835261]
[1770484250501,0.1024,2041.1,2039.6,0.98835261]
[1770484251288,1.06412681,2041.1,2039.6,0.98835261]
[1770484251792,0.96172681,2041.1,2039.6,0.98835261]
[1770484252174,0.96172681,2041.1,2040.0,0.001]
[1770484252369,0.1024,2041.4,2040.0,0.98935261]
[1770484252592,0.31814778,2041.9,2040.0,0.98935261]
[1770484252781,1.06412681,2041.8,2040.2,0.98835261]
[1770484253515,0.1024,2041.6,2040.2,0.98835261]
[1770484253808,0.2335703,2041.0,2040.0,0.001]
[1770484253970,0.1024,2041.3,2040.0,0.001]
[1770484254166,0.2335703,2041.2,2040.0,0.001]
[1770484254796,0.98613134,2041.0,2040.0,0.001]
[1770484254968,0.96172681,2040.8,2039.8,0.001]
[1770484255293,0.96172681,2040.6,2039.8,0.001]
[1770484255972,0.96172681,2040.4,2038.9,0.001]
[1770484256170,0.1024,2040.3,2038.9,0.98935261]
[1770484256388,0.30552294,2040.7,2039.6,0.02440453]
[1770484256670,1.06412681,2041.9,2039.7,0.98835261]
[1770484256872,0.96172681,2042.2,2039.9,0.98835261]
[1770484257098,0.96172681,2042.2,2039.8,6.40203543]
[1770484257099,0.98613134,2041.5,2040.1,0.98835261]
[1770484257301,0.02440453,2041.8,2040.1,0.98835261]
[1770484257472,0.12680453,2041.8,2040.1,0.98835261]
[1770484257670,1.06412681,2041.7,2040.1,0.98835261]
[1770484257970,0.20142886,2042.4,2040.1,0.98835261]
[1770484257971,0.98613134,2042.1,2040.1,0.98835261]
[1770484258168,0.1024,2042.0,2040.1,0.98835261]
[1770484258368,1.06412681,2042.0,2040.1,0.98835261]
[1770484258584,0.2335703,2041.9,2040.1,0.98835261]
[1770484258791,0.96172681,2041.4,2040.0,0.7390388]
[1770484259098,0.1024,2041.6,2040.1,0.98835261]
[1770484259291,0.1024,2041.7,2040.1,0.98835261]
[1770484259490,0.2335703,2041.6,2040.1,0.98835261]
[1770484259803,0.1024,2041.7,2040.1,0.98835261]
[1770484260192,0.1024,2041.7,2040.2,1.22537006]
[1770484260394,0.1024,2041.7,2040.3,0.98835261]
[1770484260594,0.96172681,2041.7,2040.3,0.98835261]
[1770484261107,0.96172681,2042.1,2040.5,0.98835261]
[1770484261307,0.96172681,2042.1,2040.6,0.73900276]
[1770484261507,0.002,2042.4,2041.0,0.98835261]
[1770484262984,0.002,2042.4,2041.5,0.98835261]
[1770484263605,0.96172681,2042.3,2040.6,0.73900276]
[1770484263797,0.002,2042.4,2041.3,0.98835261]
[1770484264991,0.96372681,2042.6,2041.1,5.61960415]
[1770484265186,0.96172681,2042.4,2041.1,6.30405272]
[1770484265586,0.002,2042.2,2041.1,6.30405272]
[1770484266216,0.002,2042.4,2041.3,0.90864243]
[1770484266620,0.002,2042.4,2041.1,6.30405272]
[1770484266621,0.91813016,2042.3,2041.1,0.68444857]
[1770484266806,0.2355703,2042.4,2040.9,0.90864243]
[1770484267117,0.02440453,2042.0,2040.5,7.75339663]
[1770484267292,0.02440453,2042.0,2040.5,6.8447542]
[1770484267293,0.94253469,2042.0,2040.5,6.8447542]
[1770484267499,0.94253469,2042.0,2040.5,6.52824658]
[1770484267895,0.94253469,2042.0,2040.6,0.90864243]
[1770484268111,0.91813016,2042.0,2040.7,0.65282466]
[1770484268626,0.91813016,2042.2,2040.7,0.65282466]
[1770484268814,0.91813016,2042.1,2040.7,0.65282466]
[1770484268988,0.002,2042.4,2040.7,1.56146709]
[1770484269189,0.002,2042.4,2041.1,0.90864243]
[1770484270134,0.94253469,2042.3,2040.8,0.27865969]
[1770484270301,0.002,2042.4,2040.9,0.90864243]
[1770484270821,0.002,2042.4,2041.2,0.90864243]
[1770484271222,0.91309582,2042.3,2041.1,5.61960415]
[1770484271430,0.002,2042.4,2041.3,0.96068852]
[1770484271729,0.002,2042.4,2041.2,0.56196041]
[1770484272432,0.91309582,2042.3,2041.2,0.56196041]
[1770484272643,0.91309582,2042.1,2041.2,0.56196041]
[1770484272941,0.91309582,2042.1,2040.7,0.65282466]
[1770484273302,0.91309582,2042.1,2040.7,1.61351318]
[1770484274007,0.1024,2042.3,2040.7,1.61351318]
[1770484274306,0.002,2042.4,2041.1,0.96068852]
[1770484274610,0.002,2042.4,2040.8,0.96068852]
[1770484274813,0.002,2042.4,2041.0,0.96068852]